bitfinex/quotes_ETHUSD_20220106
["timestamp","ask_amount","ask_price","bid_price","bid_amount"]
[1641455676221,0.3,3453.5,3452.8,40.41621507]
[1641455676421,0.00284212,3453.4,3452.8,40.41621507]
[1641455676820,0.0022737,3453.3,3452.8,40.41621507]
[1641455677223,0.00170527,3453.2,3453.1,1.47061602]
[1641455677624,0.00170527,3453.2,3452.9,10.13426225]
[1641455678052,1.99276795,3453.6,3452.9,5.23014549]
[1641455678053,0.00113685,3453.1,3452.9,5.23014549]
[1641455678455,0.00341054,3453.5,3452.9,5.23014549]
[1641455678855,5.36165163,3453.0,3452.9,5.23014549]
[1641455679057,6.66165163,3453.0,3452.9,4.549e-05]
[1641455679258,6.96165163,3453.0,3452.9,4.549e-05]
[1641455679458,3.41165163,3453.0,3452.9,4.549e-05]
[1641455679661,2.41165163,3453.0,3452.9,4.549e-05]
[1641455679859,3.41165163,3453.0,3452.8,2.9]
[1641455680061,2.41165163,3453.0,3452.8,2.9]
[1641455680760,0.3,3453.0,3452.8,2.9]
[1641455680958,1.3,3453.3,3452.8,2.9]
[1641455681159,0.3,3453.3,3452.8,2.9]
[1641455681359,0.00170527,3453.2,3452.8,2.9]
[1641455681805,0.00113685,3453.1,3452.8,2.9]
[1641455682203,0.6022737,3453.3,3452.8,2.9]
[1641455682608,0.00170527,3453.2,3452.8,4.37086987]
[1641455683006,1.21800994,3453.7,3452.8,4.37086987]
[1641455683007,0.00113685,3453.1,3452.8,4.37086987]
[1641455683505,0.00113685,3453.1,3452.8,2.9]
[1641455684814,0.06369073,3453.6,3453.3,1.23513238]
[1641455685011,1.21800994,3453.7,3453.3,1.23513238]
[1641455685012,1.51800994,3453.7,3453.3,1.23513238]
[1641455685253,0.00227369,3453.5,3453.3,1.23513238]
[1641455685454,0.00227369,3453.5,3452.9,0.00113685]
[1641455685655,0.00170527,3453.4,3453.2,1.47056247]
[1641455685854,3.52943753,3453.2,3452.9,0.00113685]
[1641455686055,3.52943753,3453.2,3452.8,2.88288555]
[1641455686255,0.00113685,3453.1,3452.8,2.88288555]
[1641455686858,0.00113685,3453.1,3452.9,1.35180099]
[1641455687858,0.00113685,3453.1,3452.9,5.26107807]
[1641455688059,0.00113685,3453.1,3453.0,12.05466692]
[1641455688257,1.22537438,3453.2,3453.1,3.85]
[1641455688458,0.21800994,3453.7,3453.5,1.65603862]
[1641455688660,0.21800994,3453.7,3453.3,3.35677505]
[1641455688860,0.00284212,3453.6,3453.3,3.35677505]
[1641455689309,0.00227369,3453.5,3453.3,3.35677505]
[1641455689514,0.00227369,3453.5,3453.3,8.26089181]
[1641455689718,0.00170527,3453.4,3453.3,4.90411676]
[1641455690314,0.00170527,3453.4,3453.3,8.07795218]
[1641455690715,0.00170527,3453.4,3453.3,3.17383542]
[1641455690915,0.00170527,3453.4,3453.3,5.1094232]
[1641455691116,0.00170527,3453.4,3453.3,1.93558778]
[1641455691315,0.00170527,3453.4,3453.1,9.71354271]
[1641455691715,0.21800994,3453.7,3453.1,9.71354271]
[1641455691716,0.00113685,3453.3,3453.1,9.71354271]
[1641455692418,0.00113685,3453.3,3453.1,5.7919]
[1641455697711,0.00113685,3453.3,3453.1,6.5147]
[1641455698108,0.00113685,3453.3,3453.2,3.14178436]
[1641455698308,0.00113685,3453.3,3453.2,8.93348436]
[1641455698508,0.00113685,3453.3,3453.2,5.7917]
[1641455698708,0.00113685,3453.3,3453.2,8.90362174]
[1641455698910,0.00113685,3453.3,3453.2,8.86924358]
[1641455699111,0.00113685,3453.3,3453.2,12.79088629]
[1641455699310,0.00113685,3453.3,3453.2,12.8160142]
[1641455699513,0.00113685,3453.3,3453.2,9.71334271]
[1641455699713,0.00113685,3453.3,3453.2,12.86373131]
[1641455699913,0.00113685,3453.3,3453.2,12.78476469]
[1641455700114,0.00113685,3453.3,3453.2,16.07755745]
[1641455700361,0.00113685,3453.3,3453.2,12.98095763]
[1641455701057,0.00113685,3453.3,3453.2,29.89095763]
[1641455701458,0.00113685,3453.3,3453.2,12.98095763]
[1641455702157,0.00113685,3453.3,3453.2,9.05931492]
[1641455708963,0.16914679,3453.7,3453.6,1.27582702]
[1641455709868,0.16914679,3453.7,3453.6,4.54344194]
[1641455713806,0.16914679,3453.7,3453.6,3.26761492]
[1641455715258,0.16914679,3453.7,3453.6,1.45647878]
[1641455715861,0.16914679,3453.7,3453.6,4.7240937]
[1641455716260,0.16914679,3453.7,3453.6,17.4073496]
[1641455716661,0.16914679,3453.7,3453.6,15.95087082]
[1641455717359,0.16914679,3453.7,3453.6,16.25087082]
[1641455717561,4.679e-05,3453.7,3453.6,16.25087082]
[1641455717761,4.679e-05,3453.7,3453.6,23.04197082]
[1641455718160,4.679e-05,3453.7,3453.6,23.3541823]
[1641455718363,4.679e-05,3453.7,3453.6,40.72296527]
[1641455718862,3.00183526,3455.3,3453.8,0.5]
[1641455719113,3.7013,3455.4,3455.0,1.25916568]
[1641455719312,6.30273526,3456.0,3455.0,1.25916568]
[1641455719313,0.01136847,3455.3,3455.0,1.25916568]
[1641455719715,3.00183526,3456.0,3455.0,1.25916568]
[1641455719716,0.01080004,3455.2,3455.0,1.25916568]
[1641455720115,3.00183526,3456.0,3455.0,1.25916568]
[1641455720116,0.01023162,3455.1,3455.0,1.25916568]
[1641455720415,0.01023162,3455.1,3455.0,7.04776568]
[1641455724867,0.01023162,3455.1,3455.0,12.95575408]
[1641455726168,0.01023162,3455.1,3455.0,15.85575408]
[1641455729716,0.01104944,3455.1,3455.0,15.85575408]
[1641455730368,0.01023162,3455.1,3455.0,15.85575408]
[1641455734011,2.09357671,3455.1,3455.0,14.5965884]
[1641455734220,2.39357671,3455.1,3455.0,14.5965884]
[1641455734413,2.39357671,3455.1,3455.0,8.7390531]
[1641455734414,17.07345727,3455.1,3455.0,8.7390531]
[1641455734615,14.8,3455.0,3454.6,0.6925521]
[1641455734814,14.8,3455.0,3454.6,2.0776563]
[1641455735017,1.00909477,3454.9,3454.6,2.0776563]
[1641455735218,0.417,3454.8,3454.6,2.0776563]
[1641455735415,7.7,3454.6,3454.4,6.36974174]
[1641455735616,1.0,3454.5,3454.4,6.36974174]
[1641455735817,2.96926855,3454.5,3454.4,6.36974174]
[1641455736018,2.56926855,3454.5,3454.4,1.47001815]
[1641455736217,2.56926855,3454.5,3453.8,9.55511391]
[1641455736218,3.56926855,3454.5,3453.8,1.08223418]
[1641455736419,2.56926855,3454.5,3453.8,1.08223418]
[1641455736619,1.00625266,3454.4,3453.8,1.08223418]
[1641455736821,2.07589518,3453.9,3453.8,1.08223418]
[1641455737020,2.07589518,3453.9,3453.8,13.76549008]
[1641455737218,2.07930572,3453.9,3453.8,13.76549008]
[1641455737419,0.00341054,3453.9,3453.8,13.76549008]
[1641455739474,5.00341054,3453.9,3453.8,13.76549008]
[1641455744018,5.30341054,3453.9,3453.8,13.76549008]
[1641455744723,5.00341054,3453.9,3453.8,13.76549008]
[1641455745121,5.30341054,3453.9,3453.8,13.76549008]
[1641455745569,5.00341054,3453.9,3453.8,13.76549008]
[1641455746167,5.00341054,3453.9,3453.8,16.66549008]
[1641455746369,5.30341054,3453.9,3453.8,16.66549008]
[1641455746971,5.00341054,3453.9,3453.8,16.66549008]
[1641455747170,5.00341054,3453.9,3453.8,22.45609008]
[1641455747569,5.30341054,3453.9,3453.8,22.45609008]
[1641455748172,5.30341054,3453.9,3453.8,27.35726711]
[1641455748372,5.00341054,3453.9,3453.8,27.35726711]
[1641455749416,5.00341054,3453.9,3453.8,26.27503293]
[1641455749616,6.30341054,3453.9,3453.8,26.27503293]
[1641455750018,6.60341054,3453.9,3453.8,26.27503293]
[1641455750219,18.1027,3453.8,3453.4,1.96059675]
[1641455750417,1.77006933,3453.6,3453.4,0.50889675]
[1641455750618,0.3,3453.4,3453.2,2.94003631]
[1641455750914,15.217,3453.4,3452.9,3.92004841]
[1641455751118,1.0,3453.0,3452.9,3.92004841]
[1641455751317,1.0,3453.0,3452.5,0.6925521]
[1641455751318,10.2,3452.9,3452.5,0.6925521]
[1641455751616,10.2,3452.9,3452.6,0.00397897]
[1641455751617,1.3,3452.8,3452.6,0.00397897]
[1641455752015,1.6,3452.8,3452.6,0.00397897]
[1641455752417,0.6,3452.8,3452.6,0.00397897]
[1641455752619,1.717,3453.0,3452.6,0.00397897]
[1641455752861,2.017,3453.0,3452.6,0.00397897]
[1641455753462,1.017,3453.0,3452.6,0.00397897]
[1641455753666,0.07404631,3452.5,3451.5,0.0181277]
[1641455753867,0.417,3452.4,3451.5,0.0181277]
[1641455754067,14.5,3452.2,3450.7,2.24162664]
[1641455754267,14.5,3452.2,3450.4,0.6925521]
[1641455754268,34.71615304,3452.1,3450.4,0.6925521]
[1641455754566,1.46843962,3451.5,3450.9,6.17]
[1641455754768,0.417,3451.4,3450.8,0.00454739]
[1641455754968,0.717,3451.4,3451.0,0.00341054]
[1641455755270,2.80357503,3451.3,3450.5,2.8954057]
[1641455755468,1.3,3451.3,3450.5,0.00625266]
[1641455755667,1.3,3451.3,3450.6,0.00568424]
[1641455755668,1.6,3451.3,3450.6,0.00568424]
[1641455755868,1.6,3451.3,3450.5,0.00625266]
[1641455756167,1.0,3451.7,3451.2,1.35328136]
[1641455756611,2.21024674,3451.7,3451.3,0.00170527]
[1641455756812,0.00170527,3451.9,3451.3,0.00170527]
[1641455757211,0.49104631,3452.5,3451.3,0.00170527]
[1641455757212,0.00113685,3451.8,3451.3,0.00170527]
[1641455757612,0.00454739,3452.4,3451.3,0.00170527]
[1641455757816,2.17073864,3451.8,3451.3,0.00170527]
[1641455758216,2.47073864,3451.8,3451.3,0.00170527]
[1641455758414,2.77073864,3451.8,3451.3,0.00170527]
[1641455758615,1.0,3451.7,3451.3,0.00170527]
[1641455762665,1.0,3452.2,3451.3,0.00170527]
[1641455762666,2.0,3452.2,3451.3,0.00170527]
[1641455763067,0.00284212,3452.1,3451.3,0.00170527]
[1641455763464,0.00227369,3452.0,3451.3,0.00170527]
[1641455763865,0.00170527,3451.9,3451.3,0.00170527]
[1641455764430,0.00113685,3451.8,3451.3,2.9956711]
[1641455764627,0.00113685,3451.8,3451.4,5.7945]
[1641455764826,0.00284212,3452.1,3451.4,5.79563685]
[1641455765227,0.00227369,3452.0,3451.4,5.79563685]
[1641455765630,0.00170527,3451.9,3451.4,5.79563685]
[1641455766028,0.00113685,3451.8,3451.4,5.79563685]
[1641455766429,0.00284212,3452.1,3451.4,8.69563685]
[1641455766829,0.00227369,3452.0,3451.4,8.69563685]
[1641455767028,0.00227369,3452.0,3451.8,1.25691274]
[1641455767229,0.3,3452.2,3451.9,5.7939]
[1641455767631,0.00284212,3452.1,3451.9,5.7939]
[1641455768066,0.3,3452.2,3451.9,5.7939]
[1641455768067,0.00227369,3452.0,3451.9,5.7939]
[1641455770468,0.00227369,3452.0,3451.9,5.7439]
[1641455772314,0.00227369,3452.0,3451.9,9.0132213]
[1641455772715,0.00227369,3452.0,3451.9,5.7439]
[1641455773315,0.29925438,3452.2,3451.9,5.7439]
[1641455773619,0.29925438,3452.2,3451.9,9.01319933]
[1641455774218,0.29925438,3452.2,3452.0,3.26929933]
[1641455775866,1.09104631,3452.5,3452.0,3.26929933]
[1641455776068,0.79104631,3452.5,3452.0,3.26929933]
[1641455776268,0.0022737,3452.4,3452.3,1.19650919]
[1641455777365,0.0022737,3452.4,3452.3,4.46580852]
[1641455780221,0.0022737,3452.4,3452.3,6.39339505]
[1641455781023,0.0022737,3452.4,3452.3,4.46580852]
[1641455782022,0.0022737,3452.4,3452.3,5.93515237]
[1641455782222,5.0022737,3452.4,3452.3,5.93515237]
[1641455784263,5.0022737,3452.4,3452.3,4.46580852]
[1641455786268,5.3022737,3452.4,3452.3,4.46580852]
[1641455786522,5.6022737,3452.4,3452.3,4.46580852]
[1641455787024,6.6022737,3452.4,3452.3,6.16929933]
[1641455787623,8.57012848,3452.4,3452.3,6.16929933]
[1641455788224,8.45240204,3452.4,3452.3,6.16929933]
[1641455788625,8.86940204,3452.4,3451.9,1.78910685]
[1641455788825,1.0,3452.3,3451.9,1.78910685]
[1641455789024,0.417,3452.2,3451.9,1.78910685]
[1641455789224,0.41813685,3452.2,3451.9,1.78910685]
[1641455789428,0.75719905,3452.2,3451.9,1.78910685]
[1641455790027,13.6,3452.1,3451.4,0.00113685]
[1641455790269,0.717,3452.1,3451.4,0.00113685]
[1641455790467,1.0,3452.0,3451.3,0.00397896]
[1641455790668,0.717,3452.1,3451.1,0.00511581]
[1641455790869,0.717,3452.1,3451.1,1.141585]
[1641455791169,1.75553225,3451.2,3451.1,1.13646919]
[1641455791376,1.75553225,3451.2,3450.9,1.92758653]
[1641455791570,2.35553225,3451.2,3451.1,0.00511581]
[1641455792368,2.35553225,3451.2,3450.9,1.22079737]
[1641455792769,2.35553225,3451.2,3451.0,0.00568423]
[1641455795021,0.6,3451.2,3451.0,0.00568423]
[1641455795521,0.3,3451.1,3451.0,0.00568423]
[1641455795722,0.417,3451.5,3451.0,0.00568423]
[1641455796121,1.95501051,3451.2,3451.0,0.00568423]
[1641455796723,1.95501051,3451.2,3451.0,2.90568423]
[1641455797125,2.55501051,3451.2,3451.0,2.90568423]
[1641455797523,1.0,3451.1,3451.0,2.90568423]
[1641455798367,2.25501051,3451.2,3451.0,2.90568423]
[1641455798566,2.55501051,3451.2,3451.0,2.90568423]
[1641455798968,1.0,3451.1,3451.0,2.90568423]
[1641455799168,2.55501051,3451.2,3451.0,2.90568423]
[1641455799572,1.0,3451.1,3451.0,2.90568423]
[1641455804721,1.95501051,3451.2,3451.0,2.90568423]
[1641455805967,2.25501051,3451.2,3451.0,2.90568423]
[1641455806166,2.55501051,3451.2,3451.0,2.90568423]
[1641455806572,1.0,3451.1,3451.0,2.90568423]
[1641455807775,1.95501051,3451.2,3451.0,2.90568423]
[1641455808271,0.417,3451.5,3451.0,2.90568423]
[1641455809115,0.717,3451.5,3451.0,2.90568423]
[1641455809316,2.13039628,3451.4,3451.0,2.90568423]
[1641455809520,2.54739628,3451.4,3451.0,2.90568423]
[1641455809722,3.54739628,3451.4,3451.0,2.90568423]
[1641455815172,0.417,3451.4,3451.0,2.90568423]
[1641455816647,1.717,3451.4,3451.0,2.90568423]
[1641455817848,1.717,3451.4,3451.1,5.7951]
[1641455818248,1.717,3451.4,3451.2,0.00454739]
[1641455821768,0.717,3451.4,3451.2,0.00454739]
[1641455821971,1.717,3451.4,3451.2,0.00454739]
[1641455822571,1.717,3451.4,3451.3,5.7949]
[1641455822976,1.717,3451.4,3451.3,5.79887896]
[1641455825630,1.88049996,3451.4,3451.3,9.02591866]
[1641455825930,0.58049996,3451.4,3451.3,9.02591866]
[1641455826128,1.88049996,3451.4,3451.3,9.02591866]
[1641455830675,3.88240394,3451.4,3451.3,9.02591866]
[1641455831078,5.31161289,3451.4,3451.3,9.02591866]
[1641455831542,4.89461289,3451.4,3451.3,9.46021866]
[1641455833345,3.30190398,3451.4,3451.3,9.46021866]
[1641455834045,1.3,3451.4,3451.3,9.46021866]
[1641455834446,5.3,3451.5,3451.3,9.46021866]
[1641455834647,5.3,3451.5,3451.4,3.47293091]
[1641455834648,4.0208,3451.5,3451.4,3.47293091]
[1641455834846,4.0208,3451.5,3451.4,0.45068617]
[1641455834847,0.5735,3451.5,3451.4,0.45068617]
[1641455835048,2.02809232,3452.4,3451.4,3.46543033]
[1641455835471,2.03036602,3452.4,3451.5,0.00284212]
[1641455835670,2.03036602,3452.4,3452.2,0.4343]
[1641455835872,0.0022737,3452.4,3452.2,0.4343]
[1641455836872,0.0022737,3452.4,3452.3,3.6613397]
[1641455837673,0.0022737,3452.4,3452.3,6.82036538]
[1641455837873,0.0022737,3452.4,3452.3,3.6613397]
[1641455838273,2.001e-05,3452.5,3452.4,4.9843]
[1641455838474,2.001e-05,3452.5,3452.4,0.4343]
[1641455838875,0.00012001,3453.0,3452.6,0.4343]
[1641455839127,3.8188788,3453.7,3452.6,1.1114]
[1641455839327,0.00284211,3452.9,3452.8,7.5843]
[1641455839525,0.00682108,3453.6,3452.8,13.3767]
[1641455839724,0.00682108,3453.6,3453.0,0.4343]
[1641455839925,0.417,3454.6,3453.4,0.4343]
[1641455839926,0.00625265,3453.5,3453.4,0.4343]
[1641455840125,0.00625265,3453.5,3453.4,6.2257]
[1641455840926,0.00625265,3453.5,3453.4,9.4527397]
[1641455847528,0.00625265,3453.5,3453.4,12.3527397]
[1641455857425,0.00625265,3453.5,3453.4,9.1257]
[1641455865275,2.0487529,3453.8,3453.4,9.1257]
[1641455866080,0.00454739,3454.3,3453.4,9.1257]
[1641455866482,0.00397897,3454.2,3453.4,9.7881]
[1641455866881,0.00341054,3454.1,3453.4,9.7881]
[1641455867183,0.00284212,3454.0,3453.4,9.7881]
[1641455867584,0.0022737,3453.9,3453.4,9.1257]
[1641455867982,0.00170527,3453.8,3453.4,9.1257]
[1641455868182,0.00170527,3453.8,3453.6,0.4343]
[1641455868383,7.6243,3455.1,3453.9,0.4343]
[1641455868582,3.8133,3455.1,3454.2,0.4343]
[1641455868783,0.00511582,3454.7,3454.2,0.4343]
[1641455869220,6.0736,3455.6,3454.2,0.4343]
[1641455869221,0.00454739,3454.6,3454.2,0.4343]
[1641455869623,0.00397897,3454.5,3454.2,0.4343]
[1641455869824,0.00397897,3454.5,3454.4,1.46241509]
[1641455870023,2.9535887,3455.3,3454.4,1.46241509]
[1641455870024,1.0,3455.2,3454.4,1.46241509]
[1641455870228,1.0,3455.2,3454.4,0.4343]
[1641455870425,1.30795793,3455.2,3454.4,0.4343]
[1641455870631,0.60795793,3455.2,3454.4,0.4343]
[1641455870825,0.30795793,3455.2,3454.4,0.4343]
[1641455871228,3.97167407,3455.2,3454.4,0.4343]
[1641455871430,1.30312261,3455.0,3454.4,0.4343]
[1641455871627,4.08463094,3454.9,3454.3,5.7899]
[1641455871827,4.0908836,3454.9,3454.3,5.7899]
[1641455872025,1.00568424,3454.8,3454.3,5.7899]
[1641455872225,5.3426248,3454.7,3454.3,5.7899]
[1641455872426,5.34774062,3454.7,3454.3,5.7899]
[1641455872627,1.00454739,3454.6,3454.3,5.7899]
[1641455872876,0.717,3454.5,3454.3,5.7899]
[1641455873073,1.02097897,3454.5,3454.3,5.7899]
[1641455873274,0.00341055,3454.4,3454.3,5.7899]
[1641455873472,0.42041055,3454.4,3454.3,5.7899]
[1641455874273,0.42041055,3454.4,3454.3,9.05785007]
[1641455875880,7.2691,3454.3,3454.0,1.46954204]
[1641455876081,1.417,3454.2,3453.7,1.94583591]
[1641455876280,18.3292737,3454.2,3453.7,1.94583591]
[1641455876523,1.95453463,3454.1,3453.7,1.94583591]
[1641455876827,0.41813685,3454.0,3453.7,0.01824938]
[1641455877024,1.71813685,3454.0,3453.7,0.01824938]
[1641455877224,1.71813685,3454.0,3453.2,1.40041104]
[1641455878127,0.71813685,3454.0,3453.2,1.40041104]
[1641455878723,0.71813685,3454.0,3453.2,4.30041104]
[1641455878924,2.13421058,3453.7,3453.2,4.30041104]
[1641455879126,0.717,3453.6,3453.2,4.30041104]
[1641455879527,1.717,3453.6,3453.2,4.30041104]
[1641455879727,0.417,3453.6,3453.2,4.30041104]
[1641455880574,0.417,3453.6,3453.2,2.9]
[1641455881575,1.017,3453.6,3453.2,2.9]
[1641455881775,2.017,3453.6,3453.2,2.9]
[1641455881975,3.18462119,3453.5,3453.2,2.9]
[1641455882178,1.417,3453.4,3453.2,2.9]
[1641455882376,1.717,3453.4,3453.2,2.9]
[1641455882576,1.017,3453.4,3453.2,2.9]
[1641455882776,0.6,3453.4,3453.2,2.9]
[1641455883175,0.3,3453.4,3453.2,2.9]
[1641455883379,1.6,3453.6,3453.2,4.01742088]
[1641455883577,0.6,3453.6,3453.2,4.01742088]
[1641455883776,0.6,3453.6,3453.3,1.92758653]
[1641455884018,1.05240776,3453.8,3453.3,1.92758653]
[1641455884223,1.05240776,3453.8,3453.4,0.00227369]
[1641455884825,1.05240776,3453.8,3453.3,0.00284211]
[1641455885226,2.73455661,3453.8,3453.3,0.00284211]
[1641455885425,1.0,3453.7,3453.3,0.00284211]
[1641455886326,1.0,3453.7,3453.4,1.47076603]
[1641455886726,1.0,3453.7,3453.5,0.00170527]
[1641455887527,1.05149494,3453.8,3453.5,0.00170527]
[1641455887977,1.05149494,3453.8,3453.2,4.37076603]
[1641455888181,0.00113685,3453.7,3453.3,0.00113684]
[1641455888483,2.19222841,3453.7,3453.3,0.00113684]
[1641455888682,3.19222841,3453.7,3453.3,0.00113684]
[1641455890484,0.417,3453.6,3453.3,0.00113684]
[1641455890690,1.417,3453.6,3453.3,0.00113684]
[1641455890885,1.717,3453.6,3453.3,0.00113684]
[1641455895572,6.717,3453.6,3453.3,0.00113684]
[1641455896275,26.82967839,3453.6,3453.3,3.26978779]
[1641455896473,4.4,3453.4,3452.7,1.47076603]
[1641455896674,21.62903159,3453.3,3452.7,1.47076603]
[1641455896873,1.99885642,3452.9,3452.8,0.00284212]
[1641455897073,0.3,3452.9,3452.8,0.00284212]
[1641455897673,1.017,3453.1,3452.8,0.00284212]
[1641455897876,1.00113685,3453.5,3452.8,0.00284212]
[1641455897877,0.24513225,3453.4,3452.8,0.00284212]
[1641455898074,0.24513225,3453.4,3452.9,2.16736203]
[1641455898574,0.24513225,3453.4,3453.0,0.00170527]
[1641455899223,0.00113685,3453.5,3453.0,0.00170527]
[1641455899428,5.0,3453.6,3453.0,0.00170527]
[1641455899727,5.0,3453.6,3453.0,0.00284212]
[1641455900127,2.86483886,3454.3,3453.5,0.01297425]
[1641455900528,0.00397896,3454.2,3453.5,0.01297425]
[1641455900730,0.00397896,3454.2,3453.6,5.7906]
[1641455900927,0.24513225,3454.5,3454.1,1.31932154]
[1641455901127,0.24513225,3454.5,3453.9,0.2886]
[1641455901331,0.00511581,3454.4,3453.9,0.2886]
[1641455901531,0.00511581,3454.4,3454.0,1.47076603]
[1641455901729,0.00454738,3454.3,3454.0,1.47076603]
[1641455902129,0.00397896,3454.2,3454.0,1.47076603]
[1641455902329,0.00397896,3454.2,3454.1,1.21942416]
[1641455902532,1.81365124,3454.7,3454.1,1.21942416]
[1641455902773,0.3,3454.7,3454.1,1.21942416]
[1641455902973,0.00909477,3455.1,3454.1,1.21942416]
[1641455903372,0.00852635,3455.0,3454.1,1.21942416]
[1641455903774,0.00795792,3454.9,3454.1,1.21942416]
[1641455903977,0.00795792,3454.9,3454.1,2.69019019]
[1641455904173,2.19465968,3455.1,3454.1,2.69019019]
[1641455904174,0.0073895,3454.8,3454.1,2.69019019]
[1641455904579,3.19465968,3455.1,3454.1,1.21942416]
[1641455904580,0.00682108,3454.7,3454.1,1.21942416]
[1641455904982,0.00625265,3454.6,3454.1,1.21942416]
[1641455905381,0.00568423,3454.5,3454.1,1.21942416]
[1641455905781,0.00511581,3454.4,3454.1,1.21942416]
[1641455906182,0.00454738,3454.3,3454.0,1.47076603]
[1641455906626,0.00397896,3454.2,3454.0,1.47076603]
[1641455906825,0.00397896,3454.2,3454.1,1.47076603]
[1641455907026,3.19465968,3455.1,3454.1,1.47076603]
[1641455907426,0.00852635,3455.0,3454.3,1.28854202]
[1641455907725,0.00795792,3454.9,3454.3,1.28854202]
[1641455908125,0.0073895,3454.8,3454.3,1.28854202]
[1641455908625,0.00682108,3454.7,3454.1,1.47076603]
[1641455908825,0.00682108,3454.7,3454.3,2.9]
[1641455909028,0.00625265,3454.6,3454.3,2.9]
[1641455909429,3.19465968,3455.1,3454.3,2.9]
[1641455909430,0.00568423,3454.5,3454.3,2.9]
[1641455909828,0.00511581,3454.4,3454.3,2.9]
[1641455917031,0.00511581,3454.4,3454.3,6.16737955]
[1641455922935,5.38209282,3454.4,3454.3,6.16737955]
[1641455923134,6.38209282,3454.4,3454.3,6.16737955]
[1641455923940,3.13209282,3454.4,3454.3,6.16737955]
[1641455924140,2.13209282,3454.4,3454.3,2.9]
[1641455924340,3.13209282,3454.4,3454.3,2.9]
[1641455924540,2.13209282,3454.4,3454.3,2.9]
[1641455924740,3.13209282,3454.4,3454.3,2.9]
[1641455925372,3.73209282,3454.4,3454.3,2.9]
[1641455927078,2.017,3454.4,3454.3,2.9]
[1641455927479,1.017,3454.4,3454.3,6.16779591]
[1641455928280,1.017,3454.4,3454.3,2.9]
[1641455929126,2.68573565,3454.4,3454.3,2.9]
[1641455929532,3.68573565,3454.4,3454.3,2.9]
[1641455929733,2.68573565,3454.4,3454.3,2.9]
[1641455929931,3.68573565,3454.4,3454.3,2.9]
[1641455933277,3.68573565,3454.4,3454.3,6.16787629]
[1641455933877,3.68573565,3454.4,3454.3,2.9]
[1641455934780,3.68573565,3454.4,3454.3,6.16787629]
[1641455935780,8.68573565,3454.4,3454.3,6.16787629]
[1641455936180,7.017,3454.4,3454.3,6.16787629]
[1641455936381,5.417,3454.4,3454.3,6.16787629]
[1641455938031,11.567,3454.4,3454.3,6.16787629]
[1641455938230,5.417,3454.4,3454.3,0.37521629]
[1641455938629,14.2,3454.3,3453.6,7.26136603]
[1641455938830,14.2,3454.3,3453.6,5.7906]
[1641455938831,0.417,3454.2,3453.6,5.7906]
[1641455939032,1.2741507,3454.1,3453.7,0.00397897]
[1641455939231,17.327,3454.0,3453.6,0.00057897]
[1641455939435,17.32870527,3454.0,3453.7,2.9]
[1641455939635,2.84545542,3453.9,3453.7,2.9]
[1641455939837,0.417,3453.8,3453.7,2.9]
[1641455940038,6.5076,3453.8,3453.7,2.9]
[1641455940478,7.5076,3453.8,3453.7,2.9]
[1641455945144,6.5076,3453.8,3453.7,2.9]
[1641455945343,7.5076,3453.8,3453.7,2.9]
[1641455946143,6.5076,3453.8,3453.7,2.9]
[1641455947144,7.5076,3453.8,3453.7,2.9]
[1641455948778,22.0076,3453.8,3453.7,2.17063539]
[1641455948977,22.0076,3453.8,3453.0,1.47076603]
[1641455948978,0.94996461,3453.7,3453.0,1.47076603]
[1641455949179,1.70455503,3453.2,3453.0,1.47076603]
[1641455949382,12.45,3453.0,3452.7,1.92758653]
[1641455949582,3.7395506,3452.9,3452.7,1.92758653]
[1641455949783,0.417,3452.8,3452.7,1.92758653]
[1641455949981,0.717,3452.8,3452.7,1.92758653]
[1641455950183,1.017,3452.8,3452.7,1.93327076]
[1641455950383,0.6,3452.8,3452.7,0.00568423]
[1641455950583,0.3,3452.8,3452.7,0.00568423]
[1641455950887,0.3,3452.8,3452.0,0.0096632]
[1641455951082,0.417,3452.7,3452.0,0.0096632]
[1641455951283,0.417,3452.6,3452.0,0.0096632]
[1641455951527,0.417,3452.6,3452.1,1.26842749]
[1641455951927,0.417,3452.6,3452.2,0.00852635]
[1641455952729,0.717,3452.6,3452.2,0.00852635]
[1641455952928,2.56158426,3452.6,3452.2,0.00852635]
[1641455953128,2.86158426,3452.6,3452.2,0.00852635]
[1641455954032,0.417,3452.6,3452.2,0.00852635]
[1641455955681,0.717,3452.6,3452.2,0.00852635]
[1641455955880,0.717,3452.6,3451.6,0.01193689]
[1641455956085,1.717,3452.6,3451.5,0.01250532]
[1641455956284,0.717,3452.6,3451.5,0.01250532]
[1641455956483,1.93454677,3451.8,3451.5,0.01250532]
[1641455956681,2.35154677,3451.8,3451.5,0.01250532]
[1641455956881,2.65154677,3451.8,3451.5,0.01250532]
[1641455957081,2.95154677,3451.8,3451.1,0.01477901]
[1641455957282,1.0,3451.7,3451.1,0.01477901]
[1641455957981,1.0,3451.7,3451.1,1.38311524]
[1641455958182,1.0,3451.7,3451.1,0.01477901]
[1641455958381,1.0,3451.7,3451.0,0.13819997]
[1641455958382,1.0,3451.7,3451.2,0.01421059]
[1641455958586,1.0,3451.7,3451.1,0.01477901]
[1641455959032,1.0,3451.7,3451.2,3.26998731]
[1641455959440,1.0,3451.7,3451.3,0.01364216]
[1641455959937,1.0,3451.7,3451.1,0.01477901]
[1641455961737,0.6,3451.8,3451.1,0.01477901]
[1641455961938,0.6,3451.8,3451.2,3.26995962]
[1641455961939,0.3,3451.8,3451.2,3.26995962]
[1641455962143,5.0,3451.7,3451.2,3.26995962]
[1641455962341,5.0,3451.7,3451.3,0.01364216]
[1641455962541,5.6,3451.7,3451.3,0.01364216]
[1641455963177,5.6,3451.7,3451.5,1.134058]
[1641455963575,5.6,3451.7,3451.6,0.01193689]
[1641455963780,5.0,3451.7,3451.6,0.01193689]
[1641455966529,5.6,3451.7,3451.6,0.01193689]
[1641455968629,5.6,3451.7,3451.6,3.28203584]
[1641455971498,6.6,3451.7,3451.6,3.28203584]
[1641455971696,5.6,3451.7,3451.6,3.28203584]
[1641455972796,5.5922811,3451.7,3451.6,3.28203584]
[1641455973199,5.0,3451.7,3451.6,3.28203584]
[1641455973397,5.83005475,3453.1,3451.7,8.3]
[1641455973597,5.7906,3453.1,3451.7,8.3]
[1641455973797,5.7906,3453.1,3451.8,0.01080004]
[1641455974228,5.7906,3453.1,3452.0,1.99940489]
[1641455974434,5.7906,3453.1,3452.6,1.32933664]